[Event "7th Iberoamerican-ch 2019"]
[Site "Linares"]
[Date "2019.08.15"]
[Round "6.33"]
[White "Moral Garcia, Serafin"]
[Black "Carrasco Sagredo, Manuel"]
[Result "1-0"]
[ECO "B06"]
[WhiteElo "2281"]
[BlackElo "2106"]
[Annotator "NA"]
[PlyCount "57"]
[EventDate "2019.08.10"]
[EventType "swiss"]
[EventCountry "ESP"]
[SourceTitle "playchess.com"]
[Source "ChessBase"]
[SourceQuality "1"]
[TimeControl "5400+30"]

1. e4 {[%emt 0:00:00]} g6 {[%emt 0:00:00]} 2. d4 {[%emt 0:00:15]} Bg7 {[%emt 0:00:01]} 3. Nc3 {[%emt 0:00:29]} c6 {[%emt 0:00:05]} 4. Nf3 {[%emt 0:00:45]} d5 {[%emt 0:00:35]} 5. h3 {[%emt 0:00:33]} dxe4 {[%emt 0:00:35]} 6. Nxe4 {[%emt 0:00:05]} Nd7 {[%emt 0:00:06]} 7. Bc4 {[%emt 0:03:20]} Ngf6 {[%emt 0:08:46]} 8. Nxf6+ {[%emt 0:02:23]} Nxf6 {[%emt 0:01:19]} 9. O-O {[%emt 0:00:47]} O-O {[%emt 0:05:15]} 10. Re1 {[%emt 0:02:57]} Nd5 {[%emt 0:23:59]} 11. Bb3 {[%emt 0:04:13]} Bf5 {[%emt 0:04:25]} 12. Ne5 {[%emt 0:05:53]} f6 {[%emt 0:10:22]} 13. Nd3 {[%emt 0:02:43]} Kh8 {[%emt 0:03:47]} 14. Nc5 {[%emt 0:03:32]} e5 {[%emt 0:06:00]} 15. Nxb7 {[%emt 0:05:39]} Qc7 {[%emt 0:00:52]} 16. Nc5 {[%emt 0:00:21]} Rad8 {[%emt 0:02:07]} 17. c3 {[%emt 0:08:22]} Rfe8 {[%emt 0:01:46]} 18. Bd2 {[%emt 0:04:29]} Bf8 {[%emt 0:01:41]} 19. Ne4 {[%emt 0:10:33]} exd4 {[%emt 0:06:38]} 20. Bxd5 {[%emt 0:00:06]} cxd5 {[%emt 0:00:01]} 21. Ng3 {[%emt 0:01:56]} Bc8 {[%emt 0:02:43]} 22. cxd4 {[%emt 0:00:29]} Bd6 {[%emt 0:00:38]} 23. Rc1 {[%emt 0:01:57]} Rxe1+ {[%emt 0:02:10]} 24. Qxe1 {[%emt 0:00:37]} Qd7 {[%emt 0:00:30]} 25. Qe3 {[%emt 0:01:26]} f5 {[%emt 0:02:08]} 26. Qf3 {[%emt 0:00:58]} f4 {[%emt 0:00:25]} 27. Bxf4 {[%emt 0:00:30]} Rf8 {[%emt 0:00:32]} 28. Be5+ {[%emt 0:00:05]} Kg8 {[%emt 0:01:00]} 29. Qxd5+ {[%emt 0:00:09]} 1-0

[Event "7th Iberoamerican-ch 2019"]
[Site "Linares"]
[Date "2019.08.15"]
[Round "6.34"]
[White "Luque Saiz, Andres"]
[Black "Forgas Moreno, Yaniela"]
[Result "0-1"]
[ECO "B90"]
[WhiteElo "2106"]
[BlackElo "2276"]
[Annotator "NA"]
[PlyCount "84"]
[EventDate "2019.08.10"]
[EventType "swiss"]
[EventCountry "ESP"]
[SourceTitle "playchess.com"]
[Source "ChessBase"]
[SourceQuality "1"]
[TimeControl "5400+30"]

1. e4 {[%emt 0:00:00]} c5 {[%emt 0:00:00]} 2. Nf3 {[%emt 0:00:00]} d6 {[%emt 0:00:00]} 3. d4 {[%emt 0:00:00]} cxd4 {[%emt 0:00:00]} 4. Nxd4 {[%emt 0:00:00]} Nf6 {[%emt 0:00:01]} 5. Nc3 {[%emt 0:00:15]} a6 {[%emt 0:00:04]} 6. h3 {[%emt 0:00:12]} e6 {[%emt 0:00:43]} 7. g4 {[%emt 0:01:43]} h6 {[%emt 0:00:09]} 8. Bg2 {[%emt 0:00:24]} g5 {[%emt 0:00:08]} 9. O-O {[%emt 0:02:32]} Be7 {[%emt 0:00:30]} 10. a4 {[%emt 0:01:31]} Nbd7 {[%emt 0:00:45]} 11. a5 {[%emt 0:02:55]} Ne5 {[%emt 0:00:21]} 12. Nb3 {[%emt 0:04:02]} Bd7 {[%emt 0:06:26]} 13. Qe2 {[%emt 0:03:31]} Rc8 {[%emt 0:02:29]} 14. Rd1 {[%emt 0:00:43]} Qc7 {[%emt 0:00:26]} 15. Ra2 {[%emt 0:07:45]} Nh7 {[%emt 0:04:38]} 16. f4 {[%emt 0:09:52]} gxf4 {[%emt 0:01:35]} 17. Bxf4 {[%emt 0:00:23]} Nf8 {[%emt 0:00:37]} 18. Bxe5 {[%emt 0:12:18]} dxe5 {[%emt 0:00:11]} 19. Rc1 {[%emt 0:14:42]} Ng6 {[%emt 0:02:04]} 20. Nd1 {[%emt 0:01:31]} Bg5 {[%emt 0:02:54]} 21. Ne3 {[%emt 0:06:48]} Rg8 {[%emt 0:03:56]} 22. c4 {[%emt 0:02:52]} h5 {[%emt 0:02:21]} 23. Rc3 {[%emt 0:02:27]} Bc6 {[%emt 0:04:50]} 24. Nd2 {[%emt 0:01:36]} hxg4 {[%emt 0:01:13]} 25. hxg4 {[%emt 0:00:34]} Nf4 {[%emt 0:01:02]} 26. Qf2 {[%emt 0:01:41]} Nxg2 {[%emt 0:01:27]} 27. Qxg2 {[%emt 0:00:44]} Qd8 {[%emt 0:00:44]} 28. Qe2 {[%emt 0:03:43]} Qf6 {[%emt 0:01:21]} 29. Raa3 {[%emt 0:01:34]} Rd8 {[%emt 0:02:09]} 30. Nef1 {[%emt 0:02:13]} Bf4 {[%emt 0:03:17]} 31. c5 {[%emt 0:03:27]} Qh4 {[%emt 0:00:56]} 32. Rh3 {[%emt 0:01:50]} Rxg4+ {[%emt 0:03:37]} 33. Kh1 {[%emt 0:00:13]} Qg5 {[%emt 0:00:28]} 34. Nf3 {[%emt 0:00:57]} Qg7 {[%emt 0:00:44]} 35. Rd3 {[%emt 0:00:57]} Rc8 {[%emt 0:01:18]} 36. Rb3 {[%emt 0:01:24]} Ke7 {[%emt 0:00:29]} 37. N1h2 {[%emt 0:02:13]} Bxh2 {[%emt 0:00:23]} 38. Rxh2 {[%emt 0:03:57]} Rg8 {[%emt 0:00:12]} 39. Qd1 {[%emt 0:00:35]} Rd8 {[%emt 0:01:46]} 40. Rd3 {[%emt 0:01:16]} Bxe4 {[%emt 0:00:27]} 41. Rxd8 {[%emt 0:00:15]} Bxf3+ {[%emt 0:00:05]} 42. Qxf3 {[%emt 0:00:03]} Rg1# {[%emt 0:00:05]} 0-1

[Event "7th Iberoamerican-ch 2019"]
[Site "Linares"]
[Date "2019.08.15"]
[Round "6.35"]
[White "Lacayo, Rene"]
[Black "Gil Quilez, Sonia"]
[Result "1-0"]
[ECO "A06"]
[WhiteElo "2274"]
[BlackElo "2102"]
[Annotator "ChessBase"]
[PlyCount "93"]
[EventDate "2019.08.10"]
[EventType "swiss"]
[EventCountry "ESP"]
[SourceTitle "playchess.com"]
[Source "ChessBase"]
[SourceQuality "1"]
[TimeControl "5400+30"]

1. Nf3 {[%emt 0:00:00]} d5 {[%emt 0:00:00]} 2. c4 {[%emt 0:00:04]} e6 {[%emt 0:00:29]} 3. e3 {[%emt 0:00:14]} Nf6 {[%emt 0:00:53]} 4. Nc3 {[%emt 0:00:18]} Nbd7 {[%emt 0:01:38]} 5. Qc2 {[%emt 0:01:18]} a6 {[%emt 0:01:27]} 6. b3 {[%emt 0:00:20]} Bd6 {[%emt 0:01:02]} 7. Bb2 {[%emt 0:00:17]} c5 {[%emt 0:04:15]} 8. Be2 {[%emt 0:01:43]} b6 {[%emt 0:11:17]} 9. O-O {[%emt 0:04:48]} O-O {[%emt 0:00:59]} 10. d4 {[%emt 0:01:31]} Bb7 {[%emt 0:01:44]} 11. Rad1 {[%emt 0:09:54]} cxd4 {[%emt 0:04:57]} 12. Rxd4 {[%emt 0:09:08]} Qc7 {[%emt 0:05:11]} 13. cxd5 {[%emt 0:03:19]} Bxd5 {[%emt 0:07:16]} 14. Rc1 {[%emt 0:21:42]} Qb8 {[%emt 0:09:59]} 15. Nxd5 {[%emt 0:01:27]} Nxd5 {[%emt 0:00:27]} 16. e4 {[%emt 0:07:58]} N5f6 {[%emt 0:10:00]} 17. Rxd6 {[%emt 0:07:19]} Qxd6 {[%emt 0:01:32]} 18. e5 {[%emt 0:00:03]} Qe7 {[%emt 0:00:32]} 19. exf6 {[%emt 0:00:49]} Nxf6 {[%emt 0:00:08]} 20. Ng5 {[%emt 0:02:28]} Rfc8 {[%emt 0:07:14]} 21. Qxc8+ {[%emt 0:01:14]} Rxc8 {[%emt 0:00:04]} 22. Rxc8+ {[%emt 0:00:04]} Ne8 {[%emt 0:00:04]} 23. Bxa6 {[%emt 0:06:01]} Qd7 {[%emt 0:02:45]} 24. Nf3 {[%emt 0:04:51]} f6 {[%emt 0:06:13]} 25. Rc1 {[%emt 0:05:35]} Nc7 {[%emt 0:09:21]} 26. Bf1 {[%emt 0:00:21]} e5 {[%emt 0:02:42]} 27. Bc4+ {[%emt 0:00:31]} Kf8 {[%emt 0:00:35]} 28. a4 {[%emt 0:00:04]} g6 {[%emt 0:01:17]} 29. h3 {[%emt 0:00:28]} Ne6 {[%emt 0:02:46]} 30. Re1 {[%emt 0:04:06]} Nf4 {[%emt 0:01:59]} 31. Bc1 {[%emt 0:00:02]} Qf5 {[%emt 0:02:49]} 32. Bxf4 {[%emt 0:00:07]} Qxf4 {[%emt 0:00:30]} 33. Rd1 {[%emt 0:02:00]} Ke7 {[%emt 0:00:36]} 34. Nh2 {[%emt 0:00:26]} h5 {[%emt 0:00:29]} 35. Nf1 {[%emt 0:00:02]} e4 {[%emt 0:02:09]} 36. Ne3 {[%emt 0:00:05]} Qe5 {[%emt 0:00:18]} 37. Nd5+ {[%emt 0:00:25]} Kf8 {[%emt 0:00:06]} 38. Nxb6 {[%emt 0:00:08]} Kg7 {[%emt 0:00:38]} 39. Nd5 {[%emt 0:03:10]} f5 {[%emt 0:00:15]} 40. a5 {[%emt 0:01:33]} f4 {[%emt 0:00:32]} 41. a6 {[%emt 0:00:42]} e3 {[%emt 0:02:06]} 42. fxe3 {[%emt 0:00:39]} fxe3 {[%emt 0:01:01]} 43. Re1 {[%emt 0:00:14]} e2 {[%emt 0:00:42]} 44. Rxe2 {[%emt 0:00:18]} Qd4+ {[%emt 0:00:13]} 45. Kh2 {[%emt 0:00:18]} h4 {[%emt 0:00:15]} 46. a7 {[%emt 0:00:22]} Qa1 {[%emt 0:00:44]} 47. Re8 {[%emt 0:00:25]} 1-0

[Event "7th Iberoamerican-ch 2019"]
[Site "Linares"]
[Date "2019.08.15"]
[Round "6.36"]
[White "Balbuena Fuentes, Mario"]
[Black "Collado Barbas, Laura"]
[Result "1-0"]
[ECO "C06"]
[WhiteElo "2268"]
[BlackElo "2070"]
[Annotator "ChessBase"]
[PlyCount "101"]
[EventDate "2019.08.10"]
[EventType "swiss"]
[EventCountry "ESP"]
[SourceTitle "playchess.com"]
[Source "ChessBase"]
[SourceQuality "1"]
[TimeControl "5400+30"]

1. e4 {[%emt 0:00:00]} e6 {[%emt 0:00:00]} 2. d4 {[%emt 0:00:00]} d5 {[%emt 0:00:00]} 3. Nd2 {[%emt 0:00:11]} Nf6 {[%emt 0:00:00]} 4. e5 {[%emt 0:00:17]} Nfd7 {[%emt 0:00:02]} 5. c3 {[%emt 0:00:19]} c5 {[%emt 0:00:20]} 6. Bd3 {[%emt 0:00:13]} Nc6 {[%emt 0:00:18]} 7. Ne2 {[%emt 0:00:19]} cxd4 {[%emt 0:00:12]} 8. cxd4 {[%emt 0:00:06]} f6 {[%emt 0:00:09]} 9. Nf4 {[%emt 0:00:28]} Nxd4 {[%emt 0:01:07]} 10. Qh5+ {[%emt 0:00:15]} Ke7 {[%emt 0:00:09]} 11. exf6+ {[%emt 0:00:21]} Nxf6 {[%emt 0:00:10]} 12. Ng6+ {[%emt 0:00:09]} hxg6 {[%emt 0:00:05]} 13. Qxh8 {[%emt 0:00:06]} Kf7 {[%emt 0:00:05]} 14. O-O {[%emt 0:00:15]} e5 {[%emt 0:00:16]} 15. Nb3 {[%emt 0:00:10]} Nxb3 {[%emt 0:00:25]} 16. axb3 {[%emt 0:00:06]} Bf5 {[%emt 0:00:37]} 17. Bxf5 {[%emt 0:00:07]} gxf5 {[%emt 0:00:01]} 18. Bg5 {[%emt 0:00:09]} Bc5 {[%emt 0:00:59]} 19. Qh3 {[%emt 0:00:08]} g6 {[%emt 0:00:11]} 20. b4 {[%emt 0:00:26]} Bb6 {[%emt 0:00:08]} 21. Qb3 {[%emt 0:00:16]} Qd6 {[%emt 0:00:16]} 22. Be3 {[%emt 0:00:37]} Rd8 {[%emt 0:00:20]} 23. Rfc1 {[%emt 0:01:03]} Kg7 {[%emt 0:04:01]} 24. Bxb6 {[%emt 0:00:31]} axb6 {[%emt 0:02:29]} 25. Qc3 {[%emt 0:00:37]} Rd7 {[%emt 0:08:54]} 26. Ra8 {[%emt 0:51:08]} d4 {[%emt 0:07:53]} 27. Qc8 {[%emt 0:03:11]} Qxb4 {[%emt 0:03:03]} 28. h3 {[%emt 0:06:08]} Kf7 {[%emt 0:03:36]} 29. Rc7 {[%emt 0:09:11]} Qe7 {[%emt 0:14:58]} 30. Rxd7 {[%emt 0:00:09]} Qxd7 {[%emt 0:01:11]} 31. Qxd7+ {[%emt 0:01:33]} Nxd7 {[%emt 0:00:02]} 32. Ra7 {[%emt 0:00:30]} e4 {[%emt 0:00:40]} 33. Rxb7 {[%emt 0:00:30]} Ke6 {[%emt 0:00:09]} 34. Kf1 {[%emt 0:00:34]} Kd6 {[%emt 0:08:57]} 35. Ke2 {[%emt 0:01:42]} f4 {[%emt 0:03:34]} 36. b3 {[%emt 0:02:42]} Kc6 {[%emt 0:05:50]} 37. Ra7 {[%emt 0:00:03]} Ne5 {[%emt 0:01:02]} 38. Ra8 {[%emt 0:02:45]} g5 {[%emt 0:07:47]} 39. Rd8 {[%emt 0:07:25]} Kc5 {[%emt 0:11:03]} 40. Kd2 {[%emt 0:02:26]} e3+ {[%emt 0:06:54]} 41. fxe3 {[%emt 0:00:33]} fxe3+ {[%emt 0:00:10]} 42. Ke2 {[%emt 0:00:41]} Nc6 {[%emt 0:01:24]} 43. Rg8 {[%emt 0:01:27]} Kb4 {[%emt 0:01:19]} 44. Rg6 {[%emt 0:02:20]} Na5 {[%emt 0:02:54]} 45. Kd3 {[%emt 0:05:02]} Nxb3 {[%emt 0:03:11]} 46. Rxb6+ {[%emt 0:00:06]} Ka3 {[%emt 0:00:13]} 47. g3 {[%emt 0:03:14]} Ka2 {[%emt 0:01:34]} 48. Rb5 {[%emt 0:01:13]} Nd2 {[%emt 0:02:28]} 49. h4 {[%emt 0:01:56]} gxh4 {[%emt 0:01:57]} 50. gxh4 {[%emt 0:00:01]} Ne4 {[%emt 0:00:20]} 51. Re5 {[%emt 0:00:50]} 1-0

[Event "7th Iberoamerican-ch 2019"]
[Site "Linares"]
[Date "2019.08.15"]
[Round "6.37"]
[White "Paiva, Henrique M A Alberga"]
[Black "Rodriguez Perez, Angel Mariano"]
[Result "0-1"]
[ECO "B92"]
[WhiteElo "2106"]
[BlackElo "2223"]
[Annotator "NA"]
[PlyCount "69"]
[EventDate "2019.08.10"]
[EventType "swiss"]
[EventCountry "ESP"]
[SourceTitle "playchess.com"]
[Source "ChessBase"]
[SourceQuality "1"]
[TimeControl "5400+30"]

1. e4 {[%emt 0:01:33]} c5 {[%emt 0:00:00]} 2. Nf3 {[%emt 0:00:04]} d6 {[%emt 0:00:00]} 3. d4 {[%emt 0:00:04]} cxd4 {[%emt 0:00:00]} 4. Nxd4 {[%emt 0:00:04]} Nf6 {[%emt 0:00:00]} 5. Nc3 {[%emt 0:00:05]} a6 {[%emt 0:00:00]} 6. Be2 {[%emt 0:01:58]} e5 {[%emt 0:00:03]} 7. Nb3 {[%emt 0:00:04]} Be7 {[%emt 0:00:03]} 8. O-O {[%emt 0:02:26]} O-O {[%emt 0:00:04]} 9. a4 {[%emt 0:06:32]} Be6 {[%emt 0:00:21]} 10. Be3 {[%emt 0:02:26]} Nbd7 {[%emt 0:01:50]} 11. a5 {[%emt 0:00:15]} Qc7 {[%emt 0:02:34]} 12. Bf3 {[%emt 0:03:38]} b5 {[%emt 0:05:53]} 13. axb6 {[%emt 0:16:25]} Nxb6 14. Re1 {[%emt 0:00:53]} Nc4 {[%emt 0:04:44]} 15. Bc1 {[%emt 0:00:04]} Rfb8 {[%emt 0:02:04]} 16. Rb1 {[%emt 0:06:05]} a5 {[%emt 0:01:42]} 17. Nd2 {[%emt 0:00:40]} Nb6 18. Nf1 {[%emt 0:00:27]} a4 {[%emt 0:00:53]} 19. Nd5 {[%emt 0:07:54]} Nbxd5 {[%emt 0:02:59]} 20. exd5 {[%emt 0:00:05]} Bf5 {[%emt 0:00:46]} 21. Ne3 {[%emt 0:00:01]} Bg6 {[%emt 0:00:29]} 22. Ra1 {[%emt 0:00:03]} Nd7 {[%emt 0:01:14]} 23. Ra3 {[%emt 0:04:14]} Nc5 {[%emt 0:09:54]} 24. Bg4 {[%emt 0:07:44]} Bg5 {[%emt 0:04:43]} 25. Nf5 {[%emt 0:07:54]} Bxc1 {[%emt 0:01:58]} 26. Qxc1 {[%emt 0:01:45]} Rb4 {[%emt 0:04:39]} 27. Ne3 {[%emt 0:09:25]} Rab8 {[%emt 0:01:20]} 28. b3 {[%emt 0:00:20]} axb3 {[%emt 0:00:47]} 29. cxb3 {[%emt 0:00:04]} Rxb3 {[%emt 0:01:24]} 30. Rxb3 {[%emt 0:01:18]} Rxb3 {[%emt 0:00:08]} 31. h4 {[%emt 0:00:36]} h5 {[%emt 0:02:41]} 32. Bh3 {[%emt 0:07:25]} Qd8 {[%emt 0:04:23]} 33. Nf5 {[%emt 0:03:03]} Rxh3 {[%emt 0:01:34]} 34. Nh6+ {[%emt 0:00:02]} gxh6 {[%emt 0:00:14]} 35. gxh3 {[%emt 0:00:03]} 0-1

[Event "7th Iberoamerican-ch 2019"]
[Site "Linares"]
[Date "2019.08.15"]
[Round "6.38"]
[White "Ingunza Curro, Andres"]
[Black "Perera Borrego, Maria Adela"]
[Result "0-1"]
[ECO "C11"]
[WhiteElo "2103"]
[BlackElo "2186"]
[Annotator "ChessBase"]
[PlyCount "174"]
[EventDate "2019.08.10"]
[EventType "swiss"]
[EventCountry "ESP"]
[SourceTitle "playchess.com"]
[Source "ChessBase"]
[SourceQuality "1"]
[TimeControl "5400+30"]

1. e4 {[%emt 0:00:00]} e6 {[%emt 0:00:00]} 2. Nc3 {[%emt 0:00:14]} d5 {[%emt 0:00:00]} 3. d4 {[%emt 0:00:28]} Nf6 {[%emt 0:00:01]} 4. e5 {[%emt 0:00:27]} Nfd7 {[%emt 0:00:07]} 5. f4 {[%emt 0:01:48]} c5 {[%emt 0:00:26]} 6. Nf3 {[%emt 0:00:41]} Nc6 {[%emt 0:00:31]} 7. Be3 {[%emt 0:00:03]} Be7 {[%emt 0:01:04]} 8. Qd2 {[%emt 0:00:31]} b6 {[%emt 0:01:01]} 9. Be2 {[%emt 0:03:13]} Bb7 {[%emt 0:00:44]} 10. O-O {[%emt 0:02:29]} O-O {[%emt 0:02:06]} 11. Rae1 {[%emt 0:10:27]} Rc8 {[%emt 0:01:23]} 12. Nd1 {[%emt 0:04:54]} cxd4 {[%emt 0:00:12]} 13. Nxd4 {[%emt 0:00:13]} Nxd4 {[%emt 0:02:19]} 14. Bxd4 {[%emt 0:00:07]} Nc5 {[%emt 0:04:25]} 15. c3 {[%emt 0:06:45]} Ne4 {[%emt 0:02:58]} 16. Qe3 {[%emt 0:00:07]} f5 {[%emt 0:03:21]} 17. exf6 {[%emt 0:11:19]} Bxf6 {[%emt 0:00:22]} 18. Bg4 {[%emt 0:01:04]} Re8 {[%emt 0:07:58]} 19. Nf2 {[%emt 0:19:00]} Rc4 {[%emt 0:04:19]} 20. Nd3 {[%emt 0:10:00]} Ba6 {[%emt 0:06:18]} 21. Bh5 {[%emt 0:11:12]} Rf8 {[%emt 0:02:11]} 22. Bg4 {[%emt 0:06:27]} Qe7 {[%emt 0:02:30]} 23. Bf3 {[%emt 0:04:08]} Bb7 {[%emt 0:07:00]} 24. Bxf6 {[%emt 0:01:04]} gxf6 {[%emt 0:01:01]} 25. Bd1 {[%emt 0:02:14]} Kh8 {[%emt 0:01:59]} 26. Bb3 {[%emt 0:00:31]} Rc7 {[%emt 0:01:13]} 27. Nf2 {[%emt 0:00:15]} Nc5 {[%emt 0:09:35]} 28. Bd1 {[%emt 0:00:16]} Rg8 {[%emt 0:00:51]} 29. Bf3 {[%emt 0:00:38]} Qg7 {[%emt 0:05:59]} 30. Kh1 {[%emt 0:01:24]} Bc8 {[%emt 0:05:03]} 31. Re2 {[%emt 0:01:29]} Ba6 {[%emt 0:01:11]} 32. Rg1 {[%emt 0:00:37]} Bxe2 {[%emt 0:00:18]} 33. Bxe2 {[%emt 0:00:08]} e5 {[%emt 0:01:00]} 34. g4 {[%emt 0:00:26]} Re7 {[%emt 0:01:34]} 35. Bd1 {[%emt 0:00:23]} exf4 {[%emt 0:03:10]} 36. Qxf4 {[%emt 0:00:01]} Qg5 {[%emt 0:00:17]} 37. Qd4 {[%emt 0:00:12]} Qe5 {[%emt 0:00:15]} 38. Qd2 {[%emt 0:00:50]} Ne4 {[%emt 0:00:38]} 39. Qe3 {[%emt 0:00:25]} Qg5 {[%emt 0:04:14]} 40. Qf3 {[%emt 0:00:33]} Nd2 {[%emt 0:05:16]} 41. Qd3 {[%emt 0:01:06]} Qf4 {[%emt 0:01:23]} 42. Kg2 {[%emt 0:00:48]} Nc4 {[%emt 0:00:50]} 43. Qf3 {[%emt 0:01:00]} Qxf3+ {[%emt 0:02:26]} 44. Bxf3 {[%emt 0:00:01]} f5 {[%emt 0:01:26]} 45. h3 {[%emt 0:01:07]} h5 {[%emt 0:01:07]} 46. Kg3 {[%emt 0:00:37]} Ne3 {[%emt 0:01:10]} 47. Kh2 {[%emt 0:01:00]} fxg4 {[%emt 0:00:26]} 48. hxg4 {[%emt 0:00:04]} hxg4 {[%emt 0:00:38]} 49. Nxg4 {[%emt 0:00:08]} Nxg4+ {[%emt 0:00:26]} 50. Rxg4 {[%emt 0:00:06]} Rxg4 {[%emt 0:00:16]} 51. Bxg4 {[%emt 0:00:01]} Kg7 {[%emt 0:00:49]} 52. Bf3 {[%emt 0:00:25]} Re5 {[%emt 0:01:45]} 53. Kg3 {[%emt 0:00:17]} Kf6 {[%emt 0:00:32]} 54. Kf2 {[%emt 0:00:33]} Ke6 {[%emt 0:01:36]} 55. Be2 {[%emt 0:00:11]} Kf5 {[%emt 0:01:00]} 56. Ke1 {[%emt 0:00:17]} Ke4 {[%emt 0:00:18]} 57. Kd2 {[%emt 0:00:05]} Rg5 {[%emt 0:00:09]} 58. Bd3+ {[%emt 0:00:28]} Ke5 {[%emt 0:00:10]} 59. a4 {[%emt 0:00:33]} Rg2+ {[%emt 0:00:23]} 60. Kc1 {[%emt 0:00:16]} Kf4 {[%emt 0:00:23]} 61. Bc2 {[%emt 0:00:28]} Ke3 {[%emt 0:00:49]} 62. b3 {[%emt 0:00:14]} a5 {[%emt 0:00:44]} 63. Kb2 {[%emt 0:00:21]} Kd2 {[%emt 0:00:26]} 64. Bf5 {[%emt 0:00:43]} Ke3+ {[%emt 0:03:12]} 65. Ka3 {[%emt 0:00:21]} Rf2 {[%emt 0:00:51]} 66. Bh7 {[%emt 0:00:15]} Rf7 {[%emt 0:01:46]} 67. Bg8 {[%emt 0:00:56]} Rd7 {[%emt 0:00:24]} 68. Kb2 {[%emt 0:00:14]} Ke4 {[%emt 0:00:31]} 69. Be6 {[%emt 0:00:41]} Rc7 {[%emt 0:00:20]} 70. Bh3 {[%emt 0:01:34]} Rg7 {[%emt 0:00:40]} 71. Be6 {[%emt 0:00:45]} d4 {[%emt 0:00:55]} 72. cxd4 {[%emt 0:00:05]} Kxd4 {[%emt 0:00:01]} 73. Bc4 {[%emt 0:00:28]} Rg2+ {[%emt 0:00:07]} 74. Ka3 {[%emt 0:00:09]} Kc3 {[%emt 0:00:10]} 75. Bd5 {[%emt 0:00:00]} Rg1 {[%emt 0:00:00]} 76. Ka2 {[%emt 0:00:00]} Kb4 {[%emt 0:00:00]} 77. Kb2 {[%emt 0:00:02]} Rd1 {[%emt 0:00:00]} 78. Bf7 {[%emt 0:00:43]} Rd2+ {[%emt 0:00:00]} 79. Kc1 {[%emt 0:00:03]} Rf2 {[%emt 0:00:00]} 80. Bc4 {[%emt 0:00:10]} Kc3 {[%emt 0:00:00]} 81. Kb1 {[%emt 0:00:02]} Rb2+ {[%emt 0:00:02]} 82. Ka1 {[%emt 0:00:02]} Rxb3 {[%emt 0:00:18]} 83. Bxb3 {[%emt 0:00:04]} Kxb3 {[%emt 0:00:03]} 84. Kb1 {[%emt 0:00:09]} Kxa4 {[%emt 0:00:05]} 85. Kb2 {[%emt 0:00:15]} Kb4 {[%emt 0:00:04]} 86. Ka2 {[%emt 0:00:04]} Kc3 {[%emt 0:00:04]} 87. Kb1 {[%emt 0:00:05]} b5 {[%emt 0:00:10]} 0-1

[Event "7th Iberoamerican-ch 2019"]
[Site "Linares"]
[Date "2019.08.15"]
[Round "6.39"]
[White "Martinez-Conde Hernandez, Carlos"]
[Black "Riquelme Valero, Manuel Damian"]
[Result "1-0"]
[ECO "B10"]
[WhiteElo "2046"]
[BlackElo "2157"]
[Annotator "NA"]
[PlyCount "67"]
[EventDate "2019.08.10"]
[EventType "swiss"]
[EventCountry "ESP"]
[SourceTitle "playchess.com"]
[Source "ChessBase"]
[SourceQuality "1"]
[TimeControl "5400+30"]

1. e4 {[%emt 0:00:00]} c6 {[%emt 0:00:00]} 2. Nf3 {[%emt 0:00:00]} d5 {[%emt 0:00:05]} 3. Nc3 {[%emt 0:00:14]} dxe4 {[%emt 0:00:39]} 4. Nxe4 {[%emt 0:00:13]} Nf6 {[%emt 0:00:10]} 5. Qe2 {[%emt 0:00:29]} Nxe4 {[%emt 0:00:34]} 6. Qxe4 {[%emt 0:00:09]} Qd5 {[%emt 0:01:57]} 7. Qf4 {[%emt 0:00:27]} Qf5 {[%emt 0:01:06]} 8. Qe3 {[%emt 0:00:33]} Qe6 {[%emt 0:01:31]} 9. b3 {[%emt 0:00:23]} Qxe3+ {[%emt 0:01:17]} 10. fxe3 {[%emt 0:00:09]} Bf5 {[%emt 0:01:56]} 11. Bb2 {[%emt 0:00:48]} Nd7 {[%emt 0:00:54]} 12. O-O-O {[%emt 0:01:50]} e6 {[%emt 0:02:34]} 13. Be2 {[%emt 0:07:18]} Be7 {[%emt 0:07:20]} 14. Rhg1 {[%emt 0:12:37]} Bf6 {[%emt 0:05:16]} 15. g4 {[%emt 0:12:03]} Bxb2+ {[%emt 0:06:57]} 16. Kxb2 {[%emt 0:00:05]} Bg6 {[%emt 0:00:39]} 17. h4 {[%emt 0:04:18]} h6 {[%emt 0:00:42]} 18. h5 {[%emt 0:01:26]} Be4 {[%emt 0:03:13]} 19. d4 {[%emt 0:03:22]} Bxf3 {[%emt 0:03:45]} 20. Bxf3 {[%emt 0:00:02]} Ke7 {[%emt 0:00:17]} 21. e4 {[%emt 0:04:03]} g6 {[%emt 0:01:21]} 22. e5 {[%emt 0:05:30]} gxh5 {[%emt 0:02:10]} 23. gxh5 {[%emt 0:00:03]} Rag8 {[%emt 0:00:09]} 24. c4 {[%emt 0:04:00]} Rxg1 {[%emt 0:03:18]} 25. Rxg1 {[%emt 0:00:02]} Kf8 {[%emt 0:00:10]} 26. b4 {[%emt 0:05:05]} Rg8 {[%emt 0:01:46]} 27. Rxg8+ {[%emt 0:00:02]} Kxg8 {[%emt 0:00:06]} 28. a4 {[%emt 0:00:07]} Kf8 {[%emt 0:00:29]} 29. a5 {[%emt 0:00:20]} a6 {[%emt 0:00:18]} 30. b5 {[%emt 0:00:41]} Nb8 {[%emt 0:00:58]} 31. Kc3 {[%emt 0:02:28]} Ke7 {[%emt 0:00:28]} 32. Kb4 {[%emt 0:00:53]} Kd8 {[%emt 0:00:18]} 33. Kc5 {[%emt 0:01:06]} Kc7 {[%emt 0:00:19]} 34. b6+ {[%emt 0:00:04]} 1-0